bitfinex-derivatives/quotes_SOLF0:USTF0_20250211
["timestamp","ask_amount","ask_price","bid_price","bid_amount"]
[1739264681534,0.03557202,204.88,204.83,12.86650338]
[1739264682435,0.03557202,204.88,204.8,12.86650338]
[1739264683037,4.91597202,204.88,204.82,4.8815]
[1739264683336,0.03557202,204.88,204.82,4.8815]
[1739264684742,4.8804,204.87,204.82,4.8815]
[1739264687043,0.03557202,204.88,204.84,4.8809]
[1739264687841,0.03557202,204.88,204.8,12.86650338]
[1739264688242,0.03557202,204.88,204.83,12.86650338]
[1739264688443,0.03557202,204.88,204.86,4.8805]
[1739264688743,0.03557202,204.88,204.83,12.86650338]
[1739264690637,0.03557202,204.88,204.86,4.8804]
[1739264692839,0.03557202,204.88,204.83,12.86650338]
[1739264693145,4.8804,204.87,204.8,12.86650338]
[1739264693542,0.03557202,204.88,204.8,12.86650338]
[1739264693842,4.91577202,204.88,204.83,4.8813]
[1739264694040,4.91577202,204.88,204.82,8.2351036]
[1739264694242,0.03557202,204.88,204.86,4.8806]
[1739264694639,0.03557202,204.88,204.86,13.1157036]
[1739264694943,0.03557202,204.88,204.87,4.8804]
[1739264701440,84.51209416,204.97,204.94,8.2351036]
[1739264701441,81.35419416,204.97,204.94,8.2351036]
[1739264703449,135.62665796,204.98,204.94,8.2351036]
[1739264703654,4.91413436,204.98,204.94,8.2351036]
[1739264705555,0.03633436,204.98,204.94,8.2351036]
[1739264706455,0.03633436,204.98,204.94,13.1138036]
[1739264707248,0.03633436,204.98,204.95,4.8783]
[1739264708752,0.03633436,204.98,204.96,4.878]
[1739264711057,0.03633436,204.98,204.95,4.8784]
[1739264711259,0.03633436,204.98,204.94,8.2351036]
[1739264711959,0.03633436,204.98,204.96,4.878]
[1739264712866,0.03633436,204.98,204.97,4.878]
[1739264731373,3.2035,205.09,204.96,8.2351036]
[1739264731575,3.2035,205.09,205.06,8.2351036]
[1739264731971,3.2035,205.09,205.06,13.1109036]
[1739264732175,1.5555,205.09,205.06,13.1109036]
[1739264732378,1.6381,205.11,205.06,8.2351036]
[1739264732678,0.03646781,205.1,205.06,8.2351036]
[1739264732981,0.03646781,205.1,205.06,13.1109036]
[1739264733278,0.03646781,205.1,205.06,8.2351036]
[1739264733976,4.8752,205.09,205.06,8.2351036]
[1739264734182,0.03646781,205.1,205.05,0.03341263]
[1739264734981,4.91156781,205.1,205.05,0.03341263]
[1739264736079,4.91156781,205.1,205.05,4.90951263]
[1739264736781,4.8754,205.08,205.05,0.03341263]
[1739264739284,4.8752,205.09,205.05,0.03341263]
[1739264739683,0.03646781,205.1,205.05,0.03341263]
[1739264740088,4.8756,205.08,205.05,0.03341263]
[1739264740583,4.8757,205.07,205.05,0.03341263]
[1739264740888,8.2351036,205.08,205.02,8.2351036]
[1739264741587,8.2351036,205.06,205.0,8.2351036]
[1739264741785,4.8768,205.03,204.97,8.2351036]
[1739264741985,4.8768,205.03,205.01,0.03135634]
[1739264742189,4.8766,205.03,205.01,0.03135634]
[1739264744889,4.8765,205.04,205.01,0.03135634]
[1739264745491,0.03413536,205.05,205.01,0.03135634]
[1739264745693,4.8766,205.03,205.01,0.03135634]
[1739264746998,4.8766,205.03,204.99,8.2351036]
[1739264747297,4.8766,205.03,204.98,4.8778]
[1739264747699,4.8771,205.01,204.97,8.2351036]
[1739264748093,8.2351036,205.02,204.95,8.2351036]
[1739264748295,4.8775,205.0,204.95,8.2351036]
[1739264748797,4.8777,204.99,204.95,8.2351036]
[1739264748992,11.4074036,205.0,204.93,52.40864547]
[1739264750000,4.8783,204.96,204.93,8.2351036]
[1739264750799,0.0337989,204.97,204.93,8.2351036]
[1739264750997,4.9117989,204.97,204.93,8.2351036]
[1739264751298,0.0337989,204.97,204.93,8.2351036]
[1739264753300,4.9118989,204.97,204.93,8.2351036]
[1739264755802,0.0337989,204.97,204.93,13.1140036]
[1739264757805,4.9117989,204.97,204.93,8.2351036]
[1739264758705,0.0337989,204.97,204.93,8.2351036]
[1739264758906,0.0337989,204.97,204.93,13.1139036]
[1739264760008,0.0337989,204.97,204.93,8.2351036]
[1739264760199,0.0337989,204.97,204.94,4.8787]
[1739264761799,0.0337989,204.97,204.96,4.8782]
[1739264762006,1.626,204.99,204.96,4.8782]
[1739264762204,1.65943294,204.99,204.97,8.2351036]
[1739264762401,1.626,204.99,204.97,8.2351036]
[1739264762606,1.626,204.99,204.95,8.2351036]
[1739264763104,1.65834018,204.99,204.95,8.2351036]
[1739264763909,1.65834018,204.99,204.98,4.8778]
[1739264764109,1.65834018,204.99,204.95,8.2351036]
[1739264764611,1.65834018,204.99,204.98,4.8778]
[1739264765508,0.03234018,204.99,204.98,4.8778]
[1739264768013,0.03234018,204.99,204.97,13.1131036]
[1739264768516,0.03234018,204.99,204.97,8.2351036]
[1739264769915,0.03234018,204.99,204.95,8.2351036]
[1739264770317,4.8778,204.98,204.95,8.2351036]
[1739264770509,0.03234018,204.99,204.93,8.2351036]
[1739264770708,8.2351036,204.98,204.91,8.2351036]
[1739264770910,4.8782,204.97,204.91,13.1145036]
[1739264771210,4.91053833,204.97,204.91,13.1145036]
[1739264771810,0.03233833,204.97,204.91,8.2351036]
[1739264772114,0.03233833,204.97,204.92,4.8792]
[1739264772918,0.03233833,204.97,204.93,8.2351036]
[1739264773119,8.2351036,205.0,204.95,4.8785]
[1739264773316,0.0360938,204.97,204.95,4.8785]
[1739264776213,0.0360938,204.97,204.93,8.2351036]
[1739264776418,0.0360938,204.97,204.96,4.8782]
[1739264778121,0.0360938,204.97,204.93,8.2351036]
[1739264778321,0.0360938,204.97,204.94,4.8785]
[1739264781123,0.0360938,204.97,204.95,4.8784]
[1739264782624,0.0360938,204.97,204.94,4.8787]
[1739264785628,0.0360938,204.97,204.93,8.2351036]
[1739264785829,0.0360938,204.97,204.95,4.8785]
[1739264786529,0.0360938,204.97,204.96,4.8782]
[1739264787021,0.0360938,204.97,204.93,8.2351036]
[1739264787629,0.0360938,204.97,204.94,4.8787]
[1739264788429,0.0360938,204.97,204.93,8.2351036]
[1739264788631,0.0360938,204.97,204.95,4.8784]
[1739264791235,0.0360938,204.97,204.96,4.8782]
[1739264793331,0.0360938,204.97,204.93,8.2351036]
[1739264794030,0.0360938,204.97,204.96,4.8782]
[1739264794934,0.0360938,204.97,204.95,4.8784]
[1739264795624,0.0360938,204.97,204.93,8.2351036]
[1739264795830,0.0360938,204.97,204.94,4.8787]
[1739264796234,0.0360938,204.97,204.93,8.2351036]
[1739264797234,0.0360938,204.97,204.93,13.1140036]
[1739264797932,0.0360938,204.97,204.94,4.8787]
[1739264798128,0.0360938,204.97,204.93,8.2351036]
[1739264798333,0.0360938,204.97,204.95,8.2351036]
[1739264798735,0.0360938,204.97,204.95,13.1135036]
[1739264800535,0.0360938,204.97,204.95,8.2351036]
[1739264801237,0.0360938,204.97,204.93,8.2351036]
[1739264801537,8.2351036,204.98,204.91,8.2351036]
[1739264801837,0.03705923,204.97,204.91,8.2351036]
[1739264802234,4.8782,204.96,204.92,4.8791]
[1739264802432,0.03705923,204.97,204.92,4.8791]
[1739264803536,4.91515923,204.97,204.92,4.8791]
[1739264804426,4.91515923,204.97,204.93,13.1140036]
[1739264804627,4.8781,204.97,204.93,13.1140036]
[1739264804831,4.9104733,204.97,204.93,13.1140036]
[1739264805639,0.0323733,204.97,204.93,13.1140036]
[1739264806237,0.0323733,204.97,204.93,8.2351036]
[1739264806440,0.0323733,204.97,204.94,4.8785]
[1739264810035,0.0323733,204.97,204.95,4.8784]
[1739264813142,0.0323733,204.97,204.94,4.8787]
[1739264816440,4.9103733,204.97,204.93,13.1140036]
[1739264817542,0.0323733,204.97,204.93,8.2351036]
[1739264817750,0.0323733,204.97,204.91,8.2351036]
[1739264818048,8.2351036,204.96,204.87,8.2351036]
[1739264818246,8.26990727,204.96,204.87,8.2351036]
[1739264818752,4.879,204.93,204.88,4.8799]
[1739264819046,4.879,204.93,204.87,8.2351036]
[1739264820247,4.879,204.93,204.88,4.8801]
[1739264821043,8.2351036,204.94,204.88,4.8801]
[1739264821243,4.91330367,204.96,204.91,13.1145036]
[1739264821449,4.8785,204.96,204.91,13.1145036]
[1739264821641,4.91449415,204.96,204.91,13.1145036]
[1739264822850,4.8786,204.95,204.91,4.8794]
[1739264823046,8.27109775,204.96,204.89,8.2351036]
[1739264823351,8.2351036,204.94,204.88,4.8799]
[1739264823740,0.03596163,204.93,204.88,4.8799]
[1739264824050,0.03596163,204.93,204.89,13.1148036]
[1739264824751,0.03596163,204.93,204.9,4.8796]
[1739264826042,0.03596163,204.93,204.91,4.8793]
[1739264828855,0.03596163,204.93,204.89,13.1148036]
[1739264829256,4.91496163,204.93,204.89,13.1148036]
[1739264829856,0.03596163,204.93,204.9,4.8796]
[1739264830653,0.03596163,204.93,204.89,8.2351036]
[1739264831458,0.03596163,204.93,204.9,4.8796]
[1739264831658,0.03596163,204.93,204.89,8.2351036]
[1739264832561,4.91496163,204.93,204.89,13.1150036]
[1739264833064,8.2351036,204.92,204.85,8.2351036]
[1739264833267,8.2351036,204.9,204.83,44.64117786]
[1739264833766,0.03479618,204.89,204.83,44.64117786]
[1739264833958,0.03479618,204.89,204.85,8.2351036]
[1739264833959,4.8802,204.88,204.85,8.2351036]
[1739264834156,0.03479618,204.89,204.87,8.2351036]
[1739264834567,0.03479618,204.89,204.88,4.8801]
[1739264840971,0.03479618,204.89,204.85,8.2351036]
[1739264841770,0.03479618,204.89,204.86,4.8806]
[1739264842273,0.03479618,204.89,204.85,8.2351036]
[1739264842672,0.03479618,204.89,204.87,4.8803]
[1739264844072,0.03479618,204.89,204.87,8.2351036]
[1739264844373,0.03479618,204.89,204.88,4.8801]
[1739264851682,0.03479618,204.89,204.85,8.2351036]
[1739264852178,0.03479618,204.89,204.83,52.87628146]
[1739264852579,0.03479618,204.89,204.85,8.2351036]
[1739264853181,0.03479618,204.89,204.87,4.8802]
[1739264853582,0.03479618,204.89,204.87,8.2351036]
[1739264853885,81.35419416,204.97,204.87,8.2351036]
[1739264854088,81.35419416,204.96,204.92,8.2351036]
[1739264855087,81.38649621,204.96,204.92,8.26811539]
[1739264855884,81.38649621,204.96,204.92,13.14711539]
[1739264856284,81.38649621,204.96,204.92,8.26811539]
[1739264856480,0.03230205,204.96,204.95,4.8785]
[1739264864989,0.03230205,204.96,204.92,8.26811539]
[1739264865487,0.03230205,204.96,204.93,4.8787]
[1739264866189,0.03230205,204.96,204.93,4.8789]
[1739264866392,0.03230205,204.96,204.92,0.03301179]
[1739264867591,0.03230205,204.96,204.92,4.91221179]
[1739264867894,8.2351036,204.94,204.92,0.03301179]
[1739264868091,4.8789,204.93,204.92,0.03301179]
[1739264868286,8.2351036,204.94,204.84,8.2351036]
[1739264868490,8.2351036,204.9,204.84,8.2351036]
[1739264869392,0.03740926,204.89,204.84,8.2351036]
[1739264869593,0.03740926,204.89,204.82,8.2351036]
[1739264869791,8.2351036,204.88,204.82,8.2351036]
[1739264870195,8.2351036,204.88,204.83,4.8813]
[1739264870599,8.2351036,204.88,204.82,8.2351036]
[1739264871095,8.2351036,204.88,204.83,4.8813]
[1739264871996,8.2351036,204.86,204.8,8.2351036]
[1739264872188,8.2351036,204.86,204.82,4.8816]
[1739264872492,0.0338863,204.85,204.82,8.2351036]
[1739264872695,8.2351036,204.88,204.83,4.8811]
[1739264872898,0.03398157,204.86,204.83,4.8811]
[1739264873592,0.03398157,204.86,204.81,4.8816]
[1739264873894,8.26908517,204.86,204.81,4.8816]
[1739264874396,8.26908517,204.86,204.79,4.8821]
[1739264874397,8.2351036,204.84,204.79,4.8821]
[1739264874992,8.2351036,204.84,204.78,8.2351036]
[1739264875192,8.2351036,204.84,204.8,4.882]
[1739264877193,0.03398157,204.86,204.8,8.2351036]
[1739264877388,0.03398157,204.86,204.82,8.2351036]
[1739264877696,1.5319,204.87,204.85,4.8807]
[1739264877991,0.03118319,204.86,204.85,4.8807]
[1739264878495,0.03118319,204.86,204.82,8.2351036]
[1739264878696,0.03118319,204.86,204.84,4.8811]
[1739264880397,0.03118319,204.86,204.85,4.8809]
[1739264881698,0.03118319,204.86,204.84,4.881]
[1739264882397,0.03118319,204.86,204.85,4.8809]
[1739264883398,0.03118319,204.86,204.82,8.2351036]
[1739264883589,8.2351036,204.9,204.84,4.8811]
[1739264883791,0.03719471,204.86,204.84,4.8811]
[1739264883992,0.03719471,204.86,204.8,13.1169036]
[1739264884202,8.2351036,204.88,204.8,8.2351036]
[1739264884405,0.03594936,204.85,204.8,8.2351036]
[1739264884701,0.03594936,204.85,204.82,4.8814]
[1739264885699,0.03594936,204.85,204.81,4.8818]
[1739264885900,8.2351036,204.84,204.78,8.2351036]
[1739264886201,8.2351036,204.84,204.73,41.98931248]
[1739264886202,0.03594936,204.85,204.8,8.2351036]
[1739264886401,8.2351036,204.86,204.82,4.8815]
[1739264886702,0.03484865,204.85,204.82,4.8815]
[1739264888304,4.91574865,204.85,204.81,4.8817]
[1739264889705,0.03484865,204.85,204.82,4.8816]
[1739264891409,4.91574865,204.85,204.82,4.8816]
[1739264891607,4.91574865,204.85,204.81,4.8818]
[1739264893809,4.8812,204.84,204.8,13.1171036]
[1739264894110,0.03484865,204.85,204.8,4.882]
[1739264894309,4.8816,204.82,204.78,13.1176036]
[1739264894505,8.2351036,204.84,204.78,8.2351036]
[1739264894904,4.8817,204.82,204.78,13.1174036]
[1739264895909,4.8814,204.83,204.79,4.8822]
[1739264896108,8.2351036,204.84,204.79,4.8822]
[1739264896710,0.03484865,204.85,204.79,4.8822]
[1739264897107,4.8811,204.84,204.79,4.8822]
[1739264897710,4.8811,204.84,204.8,4.882]
[1739264900008,0.03484865,204.85,204.82,4.8815]
[1739264900208,0.03484865,204.85,204.82,8.2351036]
[1739264900614,0.03484865,204.85,204.83,4.8811]
[1739264900808,0.03484865,204.85,204.82,8.2351036]
[1739264901212,0.03484865,204.85,204.84,4.8811]
[1739264904317,0.03484865,204.85,204.82,13.1165036]
[1739264905222,0.03484865,204.85,204.8,8.2351036]
[1739264905421,8.2351036,204.84,204.76,8.2351036]
[1739264905815,13.1162036,204.84,204.78,4.8824]
[1739264906017,13.1162036,204.84,204.78,8.2351036]
[1739264906420,4.8814,204.83,204.79,4.8821]
[1739264907222,4.8814,204.83,204.78,13.1176036]
[1739264907614,4.8814,204.83,204.78,8.2351036]
[1739264907819,4.8814,204.83,204.79,4.8822]
[1739264908522,8.2351036,204.8,204.74,4.8833]
[1739264908717,81.35419416,204.9,204.73,40.75914614]
[1739264908718,8.2351036,204.77,204.73,40.75914614]
[1739264909725,13.1179036,204.77,204.73,40.75914614]
[1739264911121,4.8835,204.74,204.73,40.75914614]
[1739264911321,4.8835,204.74,204.68,8.2351036]
[1739264911921,0.03598734,204.73,204.68,8.2351036]
[1739264912427,0.03598734,204.73,204.7,8.2351036]
[1739264913020,0.03598734,204.73,204.71,4.884]
[1739264913223,0.03598734,204.73,204.7,8.2351036]
[1739264913727,0.03598734,204.73,204.71,4.884]
[1739264914027,0.03598734,204.73,204.68,8.2351036]
[1739264914327,0.03598734,204.73,204.69,4.8844]
[1739264915328,0.03598734,204.73,204.7,4.8843]
[1739264915723,0.03598734,204.73,204.68,8.2351036]
[1739264916227,0.03598734,204.73,204.7,4.8844]
[1739264916627,0.03598734,204.73,204.66,8.2351036]
[1739264917230,0.03598734,204.73,204.68,4.8847]
[1739264917533,8.2351036,204.71,204.64,8.2351036]
[1739264918931,8.27109094,204.73,204.66,8.2351036]
[1739264919624,13.15479094,204.73,204.68,4.8847]
[1739264921334,8.27109094,204.73,204.69,4.8847]
[1739264921535,8.27109094,204.73,204.66,8.2351036]
[1739264921930,8.27109094,204.73,204.68,4.8847]
[1739264922541,8.27109094,204.73,204.66,8.2351036]
[1739264922742,4.8842,204.72,204.66,13.1203036]
[1739264922934,8.27109094,204.73,204.66,8.2351036]
[1739264923143,0.03598734,204.73,204.71,13.1193036]
[1739264923442,13.1182036,204.76,204.71,4.8842]
[1739264923737,0.03081762,204.74,204.6,3.1374]
[1739264923934,8.2351036,204.74,204.69,4.8844]
[1739264924339,8.26879326,204.74,204.67,8.2351036]
[1739264924842,8.26879326,204.74,204.7,4.8844]
[1739264925139,8.2351036,204.72,204.65,8.2351036]
[1739264925342,8.2351036,204.7,204.65,4.8856]
[1739264925537,8.2351036,204.68,204.61,8.2351036]
[1739264925845,8.2351036,204.68,204.64,4.8858]
[1739264926035,8.2351036,204.66,204.59,8.2351036]
[1739264926240,8.2351036,204.64,204.57,8.2351036]
[1739264926539,8.2351036,204.64,204.53,3.2615]
[1739264926540,8.2351036,204.64,204.55,8.2351036]
[1739264927038,8.26759533,204.62,204.55,8.2351036]
[1739264927344,8.2351036,204.62,204.55,8.2351036]
[1739264927638,0.03337335,204.61,204.55,8.2351036]
[1739264929639,0.03337335,204.61,204.6,4.8868]
[1739264932237,0.03337335,204.61,204.55,8.2351036]
[1739264933937,0.03337335,204.61,204.6,4.8868]
[1739264938046,0.03337335,204.61,204.58,4.8871]
[1739264938347,0.03337335,204.61,204.55,8.2351036]
[1739264938548,0.03337335,204.61,204.56,4.8876]
[1739264938751,0.03337335,204.61,204.55,8.2351036]
[1739264940246,0.03337335,204.61,204.57,8.2351036]
[1739264940549,4.5885,204.67,204.48,45.59330212]
[1739264940550,4.5885,204.67,204.59,8.2351036]
[1739264940755,4.5885,204.67,204.61,8.2351036]
[1739264940945,8.2351036,204.62,204.57,4.8875]
[1739264941350,8.2678543,204.62,204.57,4.8875]
[1739264942152,0.0327507,204.62,204.57,8.2351036]
[1739264942453,0.0327507,204.62,204.57,13.1225036]
[1739264945148,0.0327507,204.62,204.6,4.8868]
[1739264945352,8.2351036,204.7,204.61,8.2351036]
[1739264945556,0.03187634,204.63,204.61,8.2351036]
[1739264945757,8.2351036,204.7,204.61,8.2351036]
[1739264946057,0.03092755,204.64,204.61,13.1217036]
[1739264946355,0.03092755,204.64,204.59,8.2351036]
[1739264946557,4.8861,204.63,204.57,8.2351036]
[1739264946855,8.26603115,204.64,204.57,8.2351036]
[1739264947054,13.15193115,204.64,204.57,8.2351036]
[1739264947559,0.03092755,204.64,204.59,13.1221036]
[1739264947756,0.03092755,204.64,204.59,8.2351036]
[1739264947949,0.03092755,204.64,204.63,8.2351036]
[1739264948554,94.39309776,204.74,204.63,8.2351036]
[1739264948758,94.39309776,204.74,204.67,8.2351036]
[1739264949554,8.2351036,204.72,204.65,8.2351036]
[1739264949758,8.2351036,204.7,204.68,0.03542009]
[1739264950058,4.8849,204.69,204.63,8.2351036]
[1739264950258,8.2351036,204.7,204.67,0.03074951]
[1739264951059,4.8849,204.68,204.67,0.03074951]
[1739264952558,13.1200036,204.68,204.67,0.03074951]
[1739264954260,4.8862,204.63,204.57,8.2351036]
[1739264954456,8.2351036,204.62,204.55,8.2351036]
[1739264954958,4.8866,204.61,204.57,4.8873]
[1739264955160,4.8866,204.61,204.55,8.2351036]
[1739264955665,0.03164531,204.6,204.54,1.524]
[1739264956059,0.03164531,204.6,204.57,4.8875]
[1739264956259,0.03164531,204.6,204.54,1.524]
[1739264956664,0.03164531,204.6,204.58,4.8872]
[1739264957067,0.03164531,204.6,204.54,1.524]
[1739264957266,0.03164531,204.6,204.57,4.8875]
[1739264957466,0.03164531,204.6,204.54,1.524]
[1739264958370,0.03164531,204.6,204.56,4.8877]
[1739264959164,0.03164531,204.6,204.54,1.524]
[1739264959370,0.03164531,204.6,204.54,14.42455669]
[1739264960772,0.03164531,204.6,204.59,4.8871]
[1739264962879,4.531e-05,204.6,204.59,4.8871]
[1739264975787,4.531e-05,204.6,204.59,13.13846488]
[1739264976683,4.531e-05,204.6,204.59,4.8871]
[1739264978681,4.531e-05,204.6,204.59,13.13846488]
[1739264985788,4.531e-05,204.6,204.59,4.8871]
[1739264988088,8.25141019,204.6,204.57,0.03507951]
[1739264988286,8.25136488,204.58,204.57,0.03507951]
[1739264991392,8.25136488,204.58,204.48,8.25136488]
[1739264991579,3.1551,204.63,204.48,8.25136488]
[1739264991580,8.25136488,204.55,204.48,8.25136488]
[1739264992188,8.25136488,204.51,204.44,8.25136488]
[1739264992486,0.03362045,204.5,204.44,8.25136488]
[1739264992891,0.03362045,204.5,204.46,4.8901]
[1739264995189,0.03362045,204.5,204.47,4.8899]
[1739264995390,0.03362045,204.5,204.46,8.25136488]
[1739264995590,9.83356488,204.53,204.49,4.8894]
[1739264995797,0.0308869,204.5,204.49,4.8894]
[1739265000703,8.69e-05,204.5,204.49,4.8894]
[1739265003101,8.28797949,204.63,204.61,4.8865]
[1739265003302,0.03661461,204.63,204.58,0.03142428]
[1739265004415,0.03661461,204.63,204.62,4.8863]
[1739265008212,0.03661461,204.63,204.58,0.03142428]
[1739265009108,4.92271461,204.63,204.58,0.03142428]
[1739265009307,0.03661461,204.63,204.58,0.03142428]
[1739265010208,0.03661461,204.63,204.6,4.8867]
[1739265010414,0.03661461,204.63,204.58,0.03142428]
[1739265012413,0.03661461,204.63,204.62,4.8863]
[1739265014011,1.461e-05,204.63,204.62,4.8863]
[1739265014516,3.0794,204.75,204.61,12.8956503]
[1739265014718,3.0794,204.75,204.67,12.8956503]
[1739265015318,3.0794,204.75,204.69,4.8846]
[1739265015619,0.03756099,204.73,204.69,0.03740364]
[1739265015915,0.03756099,204.73,204.72,4.8839]
[1739265016321,0.03756099,204.73,204.69,0.03740364]
[1739265017214,0.03756099,204.73,204.61,12.8956503]
[1739265017430,0.03756099,204.73,204.65,4.8856]
[1739265017714,12.8956503,204.74,204.65,4.8856]
[1739265018613,0.03355785,204.72,204.67,0.03632043]
[1739265018809,4.8842,204.71,204.67,0.03632043]
[1739265019111,0.03355785,204.72,204.67,0.03632043]
[1739265019317,12.8956503,204.71,204.63,4.8859]
[1739265019519,4.8845,204.7,204.63,4.8859]
[1739265019717,12.8956503,204.71,204.63,4.8859]
[1739265019919,12.8956503,204.68,204.61,4.8864]
[1739265020217,7.9183,204.67,204.61,4.8864]
[1739265020615,7.9183,204.67,204.59,4.8868]
[1739265020616,4.92216805,204.66,204.59,4.8868]
[1739265020920,12.8956503,204.65,204.59,4.8868]
[1739265022718,17.7812503,204.65,204.59,4.8868]
[1739265024021,12.8956503,204.65,204.58,4.8873]
[1739265024221,4.8861,204.64,204.52,12.8956503]
[1739265024624,0.03349345,204.6,204.52,12.8956503]
[1739265026221,0.03349345,204.6,204.58,4.8872]
[1739265026918,0.03349345,204.6,204.52,12.8956503]
[1739265027625,0.03349345,204.6,204.57,4.8873]
[1739265027826,0.03349345,204.6,204.55,12.8956503]
[1739265028326,0.03349345,204.6,204.59,4.8871]
[1739265029625,9.345e-05,204.6,204.59,4.8871]
[1739265030727,9.345e-05,204.6,204.58,12.8956503]
[1739265030728,12.8956503,204.74,204.58,12.8956503]
[1739265030929,12.8956503,204.74,204.62,12.8956503]
[1739265031225,4.8842,204.72,204.62,12.8956503]
[1739265031427,4.8842,204.72,204.66,4.8854]
[1739265031626,4.8837,204.73,204.66,4.8854]
[1739265031924,12.8956503,204.74,204.62,12.8956503]
[1739265031925,0.03726218,204.72,204.67,0.03349345]
[1739265032226,4.8842,204.71,204.67,0.03349345]
[1739265032446,0.03726218,204.72,204.67,0.03349345]
[1739265032628,4.92126218,204.72,204.67,0.03349345]
[1739265033428,0.03726218,204.72,204.67,0.03349345]
[1739265035728,4.8844,204.7,204.67,0.03349345]
[1739265036930,4.8849,204.69,204.67,0.03349345]
[1739265037129,12.8956503,204.71,204.67,0.03349345]
[1739265037622,12.8956503,204.68,204.56,12.8956503]
[1739265037821,12.8956503,204.68,204.53,3.0384]
[1739265038228,4.8856,204.66,204.53,3.0384]
[1739265038628,1.5515,204.67,204.53,3.0384]
[1739265038828,0.03408648,204.62,204.6,4.8868]
[1739265042331,0.03408648,204.62,204.53,3.0384]
[1739265042528,0.03408648,204.62,204.52,12.8956503]
[1739265042729,12.8956503,204.59,204.48,46.06584206]
[1739265043134,0.03108229,204.56,204.48,46.06584206]
[1739265044932,0.03108229,204.56,204.5,4.8892]
[1739265045336,0.03108229,204.56,204.48,46.06584206]
[1739265045635,4.8887,204.53,204.48,46.06584206]
[1739265047138,12.92673259,204.56,204.48,50.95544206]
[1739265047329,12.92673259,204.56,204.48,46.06584206]
[1739265048141,17.81473259,204.56,204.48,46.06584206]
[1739265049138,0.03108229,204.56,204.52,4.8887]
[1739265050533,0.03108229,204.56,204.48,46.06584206]
[1739265050746,0.03108229,204.56,204.53,4.8884]
[1739265051236,0.03108229,204.56,204.48,46.06584206]
[1739265051433,0.03108229,204.56,204.54,4.8882]
[1739265051635,0.03108229,204.56,204.48,46.06584206]
[1739265052038,0.03108229,204.56,204.53,4.8884]
[1739265052336,0.03108229,204.56,204.48,46.06584206]
[1739265055440,0.03108229,204.56,204.53,4.8883]
[1739265056643,0.03108229,204.56,204.46,12.8956503]
[1739265056845,0.03108229,204.56,204.53,4.8882]
[1739265057445,0.03108229,204.56,204.54,4.8882]
[1739265057646,0.03108229,204.56,204.46,12.8956503]
[1739265058044,0.03108229,204.56,204.53,4.8884]
[1739265058245,0.03108229,204.56,204.46,12.8956503]
[1739265058844,0.03108229,204.56,204.47,1.5466]
[1739265059246,0.03108229,204.56,204.54,4.8881]
[1739265059848,0.03108229,204.56,204.55,4.888]
[1739265060484,0.03108229,204.56,204.49,12.8956503]
[1739265060639,0.03108229,204.56,204.53,4.8883]
[1739265060848,0.03108229,204.56,204.49,12.8956503]
[1739265061248,0.03108229,204.56,204.53,4.8885]
[1739265061546,0.03108229,204.56,204.49,12.8956503]
[1739265061751,0.03108229,204.56,204.54,4.888]
[1739265061952,0.03108229,204.56,204.49,12.8956503]
[1739265062250,0.03108229,204.56,204.55,4.888]
[1739265062447,4.6378,204.67,204.53,12.8956503]
[1739265062749,4.8854,204.66,204.6,4.8866]
[1739265063556,0.03221798,204.65,204.61,0.0308223]
[1739265064051,0.03221798,204.65,204.61,4.9173223]
[1739265064444,0.03221798,204.65,204.62,4.8863]
[1739265064952,0.03221798,204.65,204.61,0.0308223]
[1739265065153,4.91801798,204.65,204.61,0.0308223]
[1739265065351,0.03221798,204.65,204.61,0.0308223]
[1739265066044,4.8861,204.64,204.61,0.0308223]
[1739265066249,0.03221798,204.65,204.61,0.0308223]
[1739265066453,12.8956503,204.63,204.61,0.0308223]
[1739265066651,4.8863,204.62,204.61,0.0308223]
[1739265067952,4.8859,204.64,204.61,0.0308223]
[1739265068150,0.03221798,204.65,204.61,0.0308223]
[1739265069050,0.03221798,204.65,204.62,4.8861]
[1739265069253,0.03221798,204.65,204.61,0.0308223]
[1739265070556,0.03221798,204.65,204.64,4.8859]
[1739265071755,0.03221798,204.65,204.61,4.9174223]
[1739265072761,0.03221798,204.65,204.64,4.8859]
[1739265078754,0.03221798,204.65,204.63,12.8956503]
[1739265078960,0.03221798,204.65,204.61,0.0308223]
[1739265080262,3.07231798,204.65,204.61,0.0308223]
[1739265080757,4.8873,204.58,204.52,4.8887]
[1739265080954,12.8956503,204.6,204.45,12.8956503]
[1739265081962,0.03607325,204.55,204.48,4.8897]
[1739265082163,0.03607325,204.55,204.45,12.8956503]
[1739265082462,0.03607325,204.55,204.5,4.8892]
[1739265083062,0.03607325,204.55,204.45,12.8956503]
[1739265083464,0.03607325,204.55,204.48,12.8956503]